fUSD/lending_fUSD_20241225
["ID","MTS","AMOUNT","RATE_DAILY","PERIOD"]
[346577122,1735109448175,-1634.92,0.00010621,2]
[346577123,1735109448185,-26098.72,0.00010621,2]
[346577124,1735109448195,-2555.98,0.00010621,2]
[346577125,1735109448205,-6344.49,0.00010621,2]
[346577126,1735109448214,-2398.63,0.00010621,2]
[346577127,1735109448224,-10214.08,0.00010621,2]
[346577128,1735109448233,-1000.97,0.00010621,2]
[346577129,1735109448242,-579.54,0.00010621,2]
[346577130,1735109448252,-9227.16,0.00010621,2]
[346577131,1735109448262,-557.25,0.00010621,2]
[346577132,1735109448271,-1391.89,0.00010621,2]
[346577133,1735109448280,-5643.14,0.00010621,2]
[346577134,1735109448290,-1392.15,0.00010621,2]
[346577135,1735109448300,-2645.78,0.00010621,2]
[346577136,1735109448311,-11216.97,0.00010621,2]
[346577137,1735109448320,-18017.64,0.00010621,2]
[346577138,1735109448333,-1935.91,0.00010621,2]
[346577139,1735109448343,-11606.24,0.00010621,2]
[346577140,1735109448352,-11236.81,0.00010621,2]
[346577141,1735109448362,-2659.15,0.00010621,2]
[346577142,1735109448371,-200.58,0.00010625,2]
[346577143,1735109448381,-200.35,0.00010625,2]
[346577144,1735109448391,-203.52,0.00010625,2]
[346577145,1735109448401,-203.81,0.00010625,2]
[346577146,1735109448410,-200.37,0.00010625,2]
[346577147,1735109448420,-202.24,0.00010625,2]
[346577148,1735109448430,-250.0,0.00010626,2]
[346577149,1735109448440,-420.0,0.00010682,2]
[346577150,1735109448450,-166.52,0.00010881,2]
[346577151,1735109448459,-200.08,0.00010882,2]
[346577152,1735109448469,-202.71,0.00010882,2]
[346577153,1735109448480,-200.06,0.00010883,2]
[346577154,1735109448489,-202.1,0.00010883,2]
[346577155,1735109448499,-200.03,0.00010885,2]
[346577156,1735109448508,-202.17,0.00010889,2]
[346577157,1735109448518,-500.0,0.00010894,2]
[346577158,1735109448528,-620.11,0.00010894,2]
[346577159,1735109448538,-500.0,0.00010894,2]
[346577160,1735109448548,-542.49,0.00010894,2]
[346577161,1735109448558,-500.0,0.00010894,2]
[346577162,1735109448568,-1005.2,0.00010894,2]
[346577163,1735109448578,-500.0,0.00010894,2]
[346577164,1735109448588,-500.0,0.00010894,2]
[346577165,1735109448597,-500.0,0.00010894,2]
[346577166,1735109448607,-500.0,0.00010894,2]
[346577167,1735109448616,-816.04,0.00010894,2]
[346577168,1735109448626,-500.0,0.00010894,2]
[346577169,1735109448635,-500.0,0.00010894,2]
[346577170,1735109448645,-500.0,0.00010894,2]
[346577171,1735109448655,-304.83395237,0.00010894,2]
[346577172,1735109448665,-500.0,0.00010894,2]
[346577173,1735109448674,-643.53040728,0.00010894,2]
[346577174,1735109448685,-770.79,0.00010894,2]
[346577175,1735109448695,-1014.27,0.00010894,2]
[346577176,1735109448705,-507.11,0.00010894,2]
[346577177,1735109448714,-500.0,0.00010894,2]
[346577178,1735109448724,-731.94,0.00010894,2]
[346577179,1735109448734,-702.58,0.00010894,2]
[346577180,1735109448744,-993.84,0.00010894,2]
[346577181,1735109448754,-15505.81,0.00010894,2]
[346577182,1735109448764,-500.0,0.00010894,2]
[346577183,1735109448774,-500.0,0.00010894,2]
[346577184,1735109448784,-552.15,0.00010894,2]
[346577185,1735109448794,-567.85,0.00010894,2]
[346577186,1735109448804,-2977.8,0.00010894,2]
[346577187,1735109448813,-1972.76,0.00010894,2]
[346577188,1735109448823,-500.0,0.00010894,2]
[346577189,1735109448833,-500.0,0.00010894,2]
[346577190,1735109448843,-500.0,0.00010894,2]
[346577191,1735109448853,-6856.63,0.00010894,2]
[346577192,1735109448862,-1374.01,0.00010894,2]
[346577193,1735109448872,-500.0,0.00010894,2]
[346577194,1735109448881,-154.32729,0.00010894,2]
[346577195,1735109448891,-3036.049048,0.00010894,2]
[346577196,1735109448900,-3772.18,0.00010894,2]
[346577197,1735109448910,-580.3,0.00010894,2]
[346577198,1735109448919,-500.0,0.00010894,2]
[346577199,1735109448929,-500.0,0.00010894,2]
[346577200,1735109448939,-5062.46,0.00010894,2]
[346577201,1735109448948,-1817.54,0.00010894,2]
[346577202,1735109448959,-3061.625829,0.00010894,2]
[346577203,1735109448968,-500.0,0.00010894,2]
[346577204,1735109448978,-21563.4,0.00010894,2]
[346577205,1735109448987,-973.19,0.00010894,2]
[346577206,1735109448997,-500.0,0.00010894,2]
[346577207,1735109449006,-3901.91,0.00010894,2]
[346577208,1735109449016,-500.0,0.00010894,2]
[346577209,1735109449025,-500.0,0.00010894,2]
[346577210,1735109449034,-500.0,0.00010894,2]
[346577211,1735109449044,-2042.02,0.00010894,2]
[346577212,1735109449054,-677.51,0.00010894,2]
[346577213,1735109449062,-2376.5,0.00010894,2]
[346577214,1735109449072,-500.0,0.00010894,2]
[346577215,1735109449081,-500.0,0.00010894,2]
[346577216,1735109449091,-2358.11,0.00010894,2]
[346577217,1735109449100,-868.23,0.00010894,2]
[346577218,1735109449109,-2215.24,0.00010894,2]
[346577219,1735109449118,-500.0,0.00010894,2]
[346577220,1735109449128,-500.0,0.00010894,2]
[346577221,1735109449137,-3740.0,0.00010894,2]
[346577222,1735109449146,-5841.13,0.00010894,2]
[346577223,1735109449155,-1614.02,0.00010894,2]
[346577224,1735109449164,-500.0,0.00010894,2]
[346577225,1735109449174,-4456.31,0.00010894,2]
[346577226,1735109449183,-705.68,0.00010894,2]
[346577227,1735109449193,-1390.78,0.00010894,2]
[346577228,1735109449202,-3721.21,0.00010894,2]
[346577229,1735109449212,-510.53988997,0.00010894,2]
[346577230,1735109449221,-604.15,0.00010894,2]
[346577231,1735109449230,-500.0,0.00010894,2]
[346577232,1735109449240,-3000.73,0.00010894,2]
[346577233,1735109449249,-1297.96,0.00010894,2]
[346577234,1735109449259,-633.56,0.00010894,2]
[346577235,1735109449268,-570.88,0.00010894,2]
[346577236,1735109449278,-500.0,0.00010894,2]
[346577237,1735109449288,-993.72,0.00010894,2]
[346577238,1735109449297,-7979.02,0.00010894,2]
[346577239,1735109449308,-1659.11,0.00010894,2]
[346577240,1735109449317,-500.0,0.00010894,2]
[346577241,1735109449330,-4237.88,0.00010894,2]
[346577242,1735109449340,-500.0,0.00010894,2]
[346577243,1735109449351,-5930.83,0.00010894,2]
[346577244,1735109449360,-500.0,0.00010894,2]
[346577245,1735109449372,-500.0,0.00010894,2]
[346577246,1735109449381,-3976.51,0.00010894,2]
[346577247,1735109449391,-10328.22,0.00010894,2]
[346577248,1735109449400,-1156.5,0.00010894,2]
[346577249,1735109449409,-3322.58,0.00010894,2]
[346577250,1735109449419,-503.19636838,0.00010894,2]
[346577251,1735109449430,-20107.93,0.00010894,2]
[346577252,1735109449440,-2773.15,0.00010894,2]
[346577253,1735109449449,-3753.47,0.00010894,2]
[346577254,1735109449459,-11697.12,0.00010894,2]
[346577255,1735109449468,-586.7,0.00010894,2]
[346577256,1735109449479,-500.0,0.00010894,2]
[346577257,1735109449488,-821.03,0.00010894,2]
[346577258,1735109449498,-13898.82,0.00010894,2]
[346577259,1735109449508,-1914.09,0.00010894,2]
[346577260,1735109449519,-7744.4,0.00010894,2]
[346577261,1735109449529,-500.0,0.00010894,2]
[346577262,1735109449539,-502.59,0.00010894,2]
[346577263,1735109449549,-500.0,0.00010894,2]
[346577264,1735109449559,-4261.91,0.00010894,2]
[346577265,1735109449569,-1884.31,0.00010894,2]
[346577266,1735109449578,-563.25306017,0.00010894,2]
[346577267,1735109449588,-500.0,0.00010894,2]
[346577268,1735109449598,-500.0,0.00010894,2]
[346577269,1735109449608,-2537.03,0.00010894,2]
[346577270,1735109449618,-651.83,0.00010894,2]
[346577271,1735109449627,-500.0,0.00010894,2]
[346577272,1735109449638,-1004.79,0.00010894,2]
[346577273,1735109449647,-887.01,0.00010894,2]
[346577274,1735109449657,-29163.73,0.00010894,2]
[346577275,1735109449666,-528.87,0.00010894,2]
[346577276,1735109449676,-19957.27,0.00010894,2]
[346577277,1735109449686,-662.12,0.00010894,2]
[346577278,1735109449696,-201.54,0.00010895,2]
[346577279,1735109449705,-1288.57,0.00010895,2]
[346577280,1735109449715,-500.0,0.00010895,2]
[346577281,1735109449724,-1696.88,0.00010895,2]
[346577282,1735109449734,-500.0,0.00010895,2]
[346577283,1735109449743,-590.32,0.00010895,2]
[346577284,1735109449752,-500.0,0.00010895,2]
[346577285,1735109449937,-1115.26,0.00010895,2]
[346577286,1735109449948,-2696.61,0.00010895,2]
[346577287,1735109449957,-1570.78,0.00010895,2]
[346577288,1735109449967,-1991.13,0.00010895,2]
[346577289,1735109449976,-1761.02,0.00010895,2]
[346577290,1735109449986,-1297.38,0.00010895,2]
[346577291,1735109449996,-803.11,0.00010895,2]
[346577292,1735109450005,-1063.86,0.00010895,2]
[346577293,1735109450015,-714.36,0.00010895,2]
[346577294,1735109450024,-543.46,0.00010895,2]
[346577295,1735109450034,-1588.1,0.00010895,2]
[346577296,1735109450043,-843.3,0.00010895,2]
[346577297,1735109450053,-500.0,0.00010895,2]
[346577298,1735109450062,-731.12,0.00010895,2]
[346577299,1735109450071,-500.0,0.00010895,2]
[346577300,1735109450081,-2232.08,0.00010895,2]
[346577301,1735109450091,-500.0,0.00010895,2]
[346577302,1735109450101,-500.0,0.00010895,2]
[346577303,1735109450110,-2017.53,0.00010895,2]
[346577304,1735109450119,-1864.77,0.00010895,2]
[346577305,1735109450129,-619.8,0.00010895,2]
[346577306,1735109450138,-500.0,0.00010895,2]
[346577307,1735109450148,-1210.44,0.00010895,2]
[346577308,1735109450157,-500.0,0.00010895,2]
[346577309,1735109450166,-571.52,0.00010895,2]
[346577310,1735109450176,-2124.3,0.00010895,2]
[346577311,1735109450186,-500.0,0.00010895,2]
[346577312,1735109450196,-808.84,0.00010895,2]
[346577313,1735109450205,-610.7,0.00010895,2]
[346577314,1735109450214,-500.0,0.00010895,2]
[346577315,1735109450224,-1191.01,0.00010895,2]
[346577316,1735109450233,-500.0,0.00010895,2]
[346577317,1735109450243,-882.03,0.00010895,2]
[346577318,1735109450253,-554.6,0.00010895,2]
[346577319,1735109450262,-715.33,0.00010895,2]
[346577320,1735109450273,-1085.04,0.00010895,2]
[346577321,1735109450283,-2872.86,0.00010895,2]
[346577322,1735109450292,-801.5,0.00010895,2]
[346577323,1735109450303,-1474.17,0.00010895,2]
[346577324,1735109450313,-1404.5,0.00010895,2]
[346577325,1735109450327,-506.12,0.00010895,2]
[346577326,1735109450336,-2396.14,0.00010895,2]
[346577327,1735109450346,-1598.58,0.00010895,2]
[346577328,1735109450355,-1022.19,0.00010895,2]
[346577329,1735109450365,-541.91,0.00010895,2]
[346577330,1735109450375,-2913.95,0.00010895,2]
[346577331,1735109450384,-1473.36,0.00010895,2]
[346577332,1735109450393,-1268.41,0.00010895,2]
[346577333,1735109450403,-1846.08,0.00010895,2]
[346577334,1735109450413,-3069.3,0.00010895,2]
[346577335,1735109450423,-500.0,0.00010895,2]
[346577336,1735109450433,-739.53,0.00010895,2]
[346577337,1735109450443,-969.62,0.00010895,2]
[346577338,1735109450453,-1461.62,0.00010895,2]
[346577339,1735109450463,-761.53,0.00010895,2]
[346577340,1735109450473,-500.0,0.00010895,2]
[346577341,1735109450482,-3149.59,0.00010895,2]
[346577342,1735109450493,-2719.39,0.00010895,2]
[346577343,1735109450503,-500.0,0.00010895,2]
[346577344,1735109450513,-500.0,0.00010895,2]
[346577345,1735109450522,-3153.63,0.00010895,2]
[346577346,1735109450531,-1953.77,0.00010895,2]
[346577347,1735109450542,-1448.6,0.00010895,2]
[346577348,1735109450552,-527.85,0.00010895,2]
[346577349,1735109450562,-5391.72,0.00010895,2]
[346577350,1735109450572,-1748.06,0.00010895,2]
[346577351,1735109450582,-1100.79,0.00010895,2]
[346577352,1735109450591,-4229.21,0.00010895,2]
[346577353,1735109450600,-2488.5,0.00010895,2]
[346577354,1735109450610,-1582.98,0.00010895,2]
[346577355,1735109450620,-703.55,0.00010895,2]
[346577356,1735109450629,-5459.27,0.00010895,2]
[346577357,1735109450638,-1459.8,0.00010895,2]
[346577358,1735109450648,-1658.5,0.00010895,2]
[346577359,1735109450658,-10487.31,0.00010895,2]
[346577360,1735109450668,-1800.99,0.00010895,2]
[346577361,1735109450679,-1731.23,0.00010895,2]
[346577362,1735109450690,-6012.8,0.00010895,2]
[346577363,1735109450699,-3841.72,0.00010895,2]
[346577364,1735109450709,-1634.92,0.00010895,2]
[346577365,1735109450718,-26098.72,0.00010895,2]
[346577366,1735109450728,-2555.98,0.00010895,2]
[346577367,1735109450737,-6344.49,0.00010895,2]
[346577368,1735109450747,-2398.63,0.00010895,2]
[346577369,1735109450756,-10214.08,0.00010895,2]
[346577370,1735109450766,-1000.97,0.00010895,2]
[346577371,1735109450775,-579.54,0.00010895,2]
[346577372,1735109450785,-9227.16,0.00010895,2]
[346577373,1735109450794,-557.25,0.00010895,2]
[346577374,1735109450804,-1391.89,0.00010895,2]
[346577375,1735109450813,-5643.14,0.00010895,2]
[346577376,1735109450824,-1392.15,0.00010895,2]
[346577377,1735109450834,-2645.78,0.00010895,2]
[346577378,1735109450843,-11216.97,0.00010895,2]
[346577379,1735109450852,-18017.64,0.00010895,2]
[346577380,1735109450862,-1935.91,0.00010895,2]
[346577381,1735109450871,-11606.24,0.00010895,2]
[346577382,1735109450880,-11236.81,0.00010895,2]
[346577383,1735109450890,-2659.15,0.00010895,2]
[346577384,1735109450899,-200.41,0.00010905,2]
[346577385,1735109450909,-551.74,0.00010913,2]
[346577386,1735109450919,-203.54,0.00010913,2]
[346577387,1735109450928,-200.97,0.00010928,2]
[346577388,1735109450937,-1646.61,0.00010928,2]
[346577389,1735109450947,-409.03739089,0.00010965,2]
[346577390,1735109450957,-1000.0,0.00010999,2]
[346577391,1735109450967,-500.0,0.00011168,2]
[346577392,1735109450976,-620.11,0.00011168,2]
[346577393,1735109450985,-500.0,0.00011168,2]
[346577394,1735109450995,-542.49,0.00011168,2]
[346577395,1735109451004,-500.0,0.00011168,2]
[346577396,1735109451014,-1005.2,0.00011168,2]
[346577397,1735109451024,-500.0,0.00011168,2]
[346577398,1735109451033,-500.0,0.00011168,2]
[346577399,1735109451043,-500.0,0.00011168,2]
[346577400,1735109451052,-500.0,0.00011168,2]
[346577401,1735109451063,-816.04,0.00011168,2]
[346577402,1735109451072,-500.0,0.00011168,2]
[346577403,1735109451081,-500.0,0.00011168,2]
[346577404,1735109451091,-500.0,0.00011168,2]
[346577405,1735109451101,-500.0,0.00011168,2]
[346577406,1735109451110,-770.79,0.00011168,2]
[346577407,1735109451119,-1014.27,0.00011168,2]
[346577408,1735109451129,-507.11,0.00011168,2]
[346577409,1735109451138,-500.0,0.00011168,2]
[346577410,1735109451147,-731.94,0.00011168,2]
[346577411,1735109451156,-702.58,0.00011168,2]
[346577412,1735109451166,-993.84,0.00011168,2]
[346577413,1735109451175,-15505.81,0.00011168,2]
[346577414,1735109451185,-500.0,0.00011168,2]
[346577415,1735109451194,-500.0,0.00011168,2]
[346577416,1735109451205,-552.15,0.00011168,2]
[346577417,1735109451215,-567.85,0.00011168,2]
[346577418,1735109451225,-2977.8,0.00011168,2]
[346577419,1735109451234,-1972.76,0.00011168,2]
[346577420,1735109451244,-500.0,0.00011168,2]
[346577421,1735109451253,-500.0,0.00011168,2]
[346577422,1735109451264,-435.87124819,0.00011168,2]
[346577423,1735109451273,-6856.63,0.00011168,2]
[346577424,1735109451283,-1374.01,0.00011168,2]
[346577425,1735109451292,-156.483897,0.00011168,2]
[346577426,1735109451303,-500.0,0.00011168,2]
[346577427,1735109451313,-3036.049048,0.00011168,2]
[346577428,1735109451322,-3772.18,0.00011168,2]
[346577429,1735109451334,-580.3,0.00011168,2]
[346577430,1735109451343,-500.0,0.00011168,2]
[346577431,1735109451352,-500.0,0.00011168,2]
[346577432,1735109451361,-5062.46,0.00011168,2]
[346577433,1735109451371,-1817.54,0.00011168,2]
[346577434,1735109451381,-3061.625829,0.00011168,2]
[346577435,1735109451390,-500.0,0.00011168,2]
[346577436,1735109451399,-21563.4,0.00011168,2]
[346577437,1735109451408,-973.19,0.00011168,2]
[346577438,1735109451417,-500.0,0.00011168,2]
[346577439,1735109451426,-3901.91,0.00011168,2]
[346577440,1735109451436,-500.0,0.00011168,2]
[346577441,1735109451446,-500.0,0.00011168,2]
[346577442,1735109451455,-500.0,0.00011168,2]
[346577443,1735109451465,-2042.02,0.00011168,2]
[346577444,1735109451474,-677.51,0.00011168,2]
[346577445,1735109451483,-2376.5,0.00011168,2]
[346577446,1735109451492,-500.0,0.00011168,2]
[346577447,1735109451502,-500.0,0.00011168,2]
[346577448,1735109451511,-2358.11,0.00011168,2]
[346577449,1735109451520,-868.23,0.00011168,2]
[346577450,1735109451529,-2215.24,0.00011168,2]
[346577451,1735109451538,-500.0,0.00011168,2]
[346577452,1735109451548,-500.0,0.00011168,2]
[346577453,1735109451557,-1890.31656843,0.00011168,2]
[346577454,1735109451579,-1849.68343157,0.00011168,2]
[346577455,1735109451588,-5841.13,0.00011168,2]
[346577456,1735109451599,-1614.02,0.00011168,2]
[346577457,1735109451608,-500.0,0.00011168,2]
[346577458,1735109451617,-4456.31,0.00011168,2]
[346577459,1735109451627,-705.68,0.00011168,2]
[346577460,1735109451636,-1390.78,0.00011168,2]
[346577461,1735109451646,-3721.21,0.00011168,2]
[346577462,1735109451655,-604.15,0.00011168,2]
[346577463,1735109451664,-500.0,0.00011168,2]
[346577464,1735109451673,-3000.73,0.00011168,2]
[346577465,1735109451683,-1297.96,0.00011168,2]
[346577466,1735109451692,-633.56,0.00011168,2]
[346577467,1735109451702,-570.88,0.00011168,2]
[346577468,1735109451711,-500.0,0.00011168,2]
[346577469,1735109451720,-993.72,0.00011168,2]
[346577470,1735109451729,-500.0,0.00011168,2]
[346577471,1735109451739,-1659.11,0.00011168,2]
[346577472,1735109451748,-4237.88,0.00011168,2]
[346577473,1735109451758,-7979.02,0.00011168,2]
[346577474,1735109451768,-500.0,0.00011168,2]
[346577475,1735109451779,-5930.83,0.00011168,2]
[346577476,1735109451788,-500.0,0.00011168,2]
[346577477,1735109451798,-500.0,0.00011168,2]
[346577478,1735109451807,-3976.51,0.00011168,2]
[346577479,1735109451816,-10328.22,0.00011168,2]
[346577480,1735109451826,-1156.5,0.00011168,2]
[346577481,1735109451836,-3322.58,0.00011168,2]
[346577482,1735109451845,-20107.93,0.00011168,2]
[346577483,1735109451855,-2773.15,0.00011168,2]
[346577484,1735109451864,-3753.47,0.00011168,2]
[346577485,1735109451874,-11697.12,0.00011168,2]
[346577486,1735109451883,-586.7,0.00011168,2]
[346577487,1735109451892,-500.0,0.00011168,2]
[346577488,1735109451901,-821.03,0.00011168,2]
[346577489,1735109451911,-13898.82,0.00011168,2]
[346577490,1735109451920,-1914.09,0.00011168,2]
[346577491,1735109451930,-7744.4,0.00011168,2]
[346577492,1735109451940,-352.81506387,0.00011168,2]
[346577493,1735109451950,-502.59,0.00011168,2]
[346577494,1735109451959,-500.0,0.00011168,2]
[346577495,1735109451969,-4261.91,0.00011168,2]
[346577496,1735109451978,-1884.31,0.00011168,2]
[346577497,1735109451987,-500.0,0.00011168,2]
[346577498,1735109451996,-500.0,0.00011168,2]
[346577499,1735109452006,-2537.03,0.00011168,2]
[346577500,1735109452015,-651.83,0.00011168,2]
[346577501,1735109452023,-500.0,0.00011168,2]
[346577502,1735109452032,-1004.79,0.00011168,2]
[346577503,1735109452042,-887.01,0.00011168,2]
[346577504,1735109452051,-29163.73,0.00011168,2]
[346577505,1735109452060,-528.87,0.00011168,2]
[346577506,1735109452070,-19957.27,0.00011168,2]
[346577507,1735109452079,-662.12,0.00011168,2]
[346577508,1735109452088,-1288.57,0.00011169,2]
[346577509,1735109452098,-500.0,0.00011169,2]
[346577510,1735109452108,-1696.88,0.00011169,2]
[346577511,1735109452118,-500.0,0.00011169,2]
[346577512,1735109452128,-590.32,0.00011169,2]
[346577513,1735109452137,-500.0,0.00011169,2]
[346577514,1735109452146,-1115.26,0.00011169,2]
[346577515,1735109452155,-2696.61,0.00011169,2]
[346577516,1735109452164,-1570.78,0.00011169,2]
[346577517,1735109452174,-1991.13,0.00011169,2]
[346577518,1735109452183,-1761.02,0.00011169,2]
[346577519,1735109452192,-1297.38,0.00011169,2]
[346577520,1735109452202,-803.11,0.00011169,2]
[346577521,1735109452211,-1063.86,0.00011169,2]
[346577522,1735109452220,-714.36,0.00011169,2]
[346577523,1735109452231,-543.46,0.00011169,2]
[346577524,1735109452240,-1588.1,0.00011169,2]
[346577525,1735109452249,-843.3,0.00011169,2]
[346577526,1735109452258,-500.0,0.00011169,2]
[346577527,1735109452268,-731.12,0.00011169,2]
[346577528,1735109452277,-500.0,0.00011169,2]
[346577529,1735109452286,-2232.08,0.00011169,2]
[346577530,1735109452295,-500.0,0.00011169,2]
[346577531,1735109452305,-500.0,0.00011169,2]
[346577532,1735109452315,-2017.53,0.00011169,2]
[346577533,1735109452329,-1864.77,0.00011169,2]
[346577534,1735109452339,-619.8,0.00011169,2]
[346577535,1735109452348,-500.0,0.00011169,2]
[346577536,1735109452358,-1210.44,0.00011169,2]
[346577537,1735109452367,-500.0,0.00011169,2]
[346577538,1735109452377,-571.52,0.00011169,2]
[346577539,1735109452386,-2124.3,0.00011169,2]
[346577540,1735109452395,-500.0,0.00011169,2]
[346577541,1735109452406,-808.84,0.00011169,2]
[346577542,1735109452415,-610.7,0.00011169,2]
[346577543,1735109452425,-500.0,0.00011169,2]
[346577544,1735109452435,-1191.01,0.00011169,2]
[346577545,1735109452445,-334.55435176,0.00011169,2]
[346577546,1735109452455,-882.03,0.00011169,2]
[346577547,1735109452464,-554.6,0.00011169,2]
[346577548,1735109452474,-715.33,0.00011169,2]
[346577549,1735109452484,-1085.04,0.00011169,2]
[346577550,1735109452494,-2872.86,0.00011169,2]
[346577551,1735109452504,-801.5,0.00011169,2]
[346577552,1735109452515,-1474.17,0.00011169,2]
[346577553,1735109452524,-1404.5,0.00011169,2]
[346577554,1735109452534,-506.12,0.00011169,2]
[346577555,1735109452544,-2396.14,0.00011169,2]
[346577556,1735109452553,-1598.58,0.00011169,2]
[346577557,1735109452563,-1022.19,0.00011169,2]
[346577558,1735109452572,-541.91,0.00011169,2]
[346577559,1735109452582,-2913.95,0.00011169,2]
[346577560,1735109452592,-1473.36,0.00011169,2]
[346577561,1735109452602,-1268.41,0.00011169,2]
[346577562,1735109452612,-1846.08,0.00011169,2]
[346577563,1735109452622,-3069.3,0.00011169,2]
[346577564,1735109452632,-500.0,0.00011169,2]
[346577565,1735109452641,-739.53,0.00011169,2]
[346577566,1735109452651,-969.62,0.00011169,2]
[346577567,1735109452660,-1461.62,0.00011169,2]
[346577568,1735109452669,-761.53,0.00011169,2]
[346577569,1735109452678,-500.0,0.00011169,2]
[346577570,1735109452688,-3149.59,0.00011169,2]
[346577571,1735109452698,-2719.39,0.00011169,2]
[346577572,1735109452707,-500.0,0.00011169,2]
[346577573,1735109452717,-500.0,0.00011169,2]
[346577574,1735109452726,-3153.63,0.00011169,2]
[346577575,1735109452735,-1953.77,0.00011169,2]
[346577576,1735109452745,-1448.6,0.00011169,2]
[346577577,1735109452754,-527.85,0.00011169,2]
[346577578,1735109452763,-5391.72,0.00011169,2]
[346577579,1735109452772,-1748.06,0.00011169,2]
[346577580,1735109452782,-1100.79,0.00011169,2]
[346577581,1735109452940,-4229.21,0.00011169,2]
[346577582,1735109452971,-2488.5,0.00011169,2]
[346577583,1735109452981,-1582.98,0.00011169,2]
[346577584,1735109452990,-703.55,0.00011169,2]
[346577585,1735109452999,-5459.27,0.00011169,2]
[346577586,1735109453009,-1459.8,0.00011169,2]
[346577587,1735109453018,-1658.5,0.00011169,2]
[346577588,1735109453027,-10487.31,0.00011169,2]
[346577589,1735109453037,-1800.99,0.00011169,2]
[346577590,1735109453046,-1731.23,0.00011169,2]
[346577591,1735109453056,-6012.8,0.00011169,2]
[346577592,1735109453065,-3841.72,0.00011169,2]
[346577593,1735109453074,-1634.92,0.00011169,2]
[346577594,1735109453083,-26098.72,0.00011169,2]
[346577595,1735109453092,-2555.98,0.00011169,2]
[346577596,1735109453102,-6344.49,0.00011169,2]
[346577597,1735109453112,-2398.63,0.00011169,2]
[346577598,1735109453121,-10214.08,0.00011169,2]
[346577599,1735109453130,-1000.97,0.00011169,2]
[346577600,1735109453139,-579.54,0.00011169,2]
[346577601,1735109453148,-9227.16,0.00011169,2]
[346577602,1735109453157,-557.25,0.00011169,2]
[346577603,1735109453166,-1391.89,0.00011169,2]
[346577604,1735109453175,-5643.14,0.00011169,2]
[346577605,1735109453184,-1392.15,0.00011169,2]
[346577606,1735109453193,-2645.78,0.00011169,2]
[346577607,1735109453203,-11216.97,0.00011169,2]
[346577608,1735109453213,-18017.64,0.00011169,2]
[346577609,1735109453222,-1935.91,0.00011169,2]
[346577610,1735109453232,-11606.24,0.00011169,2]
[346577611,1735109453241,-11236.81,0.00011169,2]
[346577612,1735109453250,-2659.15,0.00011169,2]
[346577613,1735109453259,-1000.0,0.00011183,2]
[346577614,1735109453269,-273.36,0.00011191,2]
[346577615,1735109453278,-3000.0,0.0001138,2]
[346577616,1735109453287,-301.235,0.000114,2]
[346577617,1735109453297,-500.0,0.00011442,2]
[346577618,1735109453307,-620.11,0.00011442,2]
[346577619,1735109453316,-500.0,0.00011442,2]
[346577620,1735109453329,-542.49,0.00011442,2]
[346577621,1735109453338,-500.0,0.00011442,2]